fUSD/lending_fUSD_20260103
["ID","MTS","AMOUNT","RATE_DAILY","PERIOD"]
[400370086,1767448246240,-153.0,0.000415,14]
[400370088,1767448246250,-153.0,0.000415,14]
[400370090,1767448246265,-1259.0,0.000415,14]
[400370092,1767448246276,-153.0,0.000415,14]
[400370094,1767448246286,-1259.0,0.000415,14]
[400370096,1767448246296,-1259.0,0.000415,14]
[400370098,1767448246307,-153.0,0.000415,14]
[400370100,1767448246316,-1259.0,0.000415,14]
[400370102,1767448246327,-153.0,0.000415,14]
[400370105,1767448246338,-153.0,0.000415,14]
[400370107,1767448246347,-1259.0,0.000415,14]
[400370109,1767448246357,-1259.0,0.000415,14]
[400370111,1767448246367,-153.0,0.000415,14]
[400370112,1767448246376,-1215.75227175,0.000415,14]
[400370114,1767448246386,-153.0,0.000415,14]
[400370117,1767448246396,-153.0,0.000415,14]
[400370119,1767448246406,-153.0,0.000415,14]
[400370121,1767448246416,-153.0,0.000415,14]
[400370123,1767448246425,-153.0,0.000415,14]
[400370125,1767448246436,-153.0,0.000415,14]
[400370127,1767448246446,-153.0,0.000415,14]
[400370129,1767448246456,-153.0,0.000415,14]
[400370131,1767448246466,-151.0,0.000415,14]
[400370133,1767448246476,-289.5901744,0.000415,14]
[400370135,1767448246485,-151.0,0.000415,14]
[400370137,1767448246495,-151.0,0.000415,14]
[400370139,1767448246505,-151.0,0.000415,14]
[400370141,1767448246516,-151.0,0.000415,14]
[400370143,1767448246526,-151.0,0.000415,14]
[400370145,1767448246536,-151.0,0.000415,14]
[400370147,1767448246546,-151.0,0.000415,14]
[400370149,1767448246556,-253.0,0.000415,36]
[400370151,1767448246566,-151.0,0.000415,120]
[400370153,1767448246576,-216.648183,0.000415,120]
[400370155,1767448246585,-216.648183,0.000415,120]
[400370157,1767448246595,-216.648183,0.000415,120]
[400370159,1767448246604,-216.648183,0.000415,120]
[400370161,1767448246614,-704.23,0.000415,30]
[400370163,1767448246623,-699.33,0.000415,30]
[400370165,1767448246632,-706.02,0.000415,30]
[400370167,1767448246642,-150.0,0.000415,30]
[400370169,1767448246651,-150.0,0.00041503,30]
[400370171,1767448246661,-150.0,0.00041503,30]
[400370173,1767448246671,-150.0,0.00041509,30]
[400370175,1767448246682,-150.0,0.00041513,30]
[400370177,1767448246692,-150.0,0.00041521,30]
[400370179,1767448246701,-150.0,0.00041525,30]
[400370181,1767448246711,-150.0,0.00041526,30]
[400370183,1767448246720,-150.0,0.00041526,30]
[400370185,1767448246730,-150.0,0.00041539,30]
[400370187,1767448246740,-150.0,0.00041541,30]
[400370189,1767448246750,-150.0,0.00041546,30]
[400370191,1767448246760,-150.0,0.00041549,30]
[400370193,1767448246770,-150.0,0.00041549,30]
[400370195,1767448246780,-150.0,0.00041562,30]
[400370197,1767448246790,-150.0,0.00041568,30]
[400370199,1767448246800,-150.0,0.0004157,30]
[400370201,1767448246810,-150.0,0.0004157,30]
[400370203,1767448246820,-150.0,0.00041573,30]
[400370205,1767448246830,-150.0,0.00041573,30]
[400370207,1767448246839,-150.0,0.00041579,30]
[400370210,1767448246849,-150.0,0.00041581,30]
[400370212,1767448246859,-150.0,0.00041583,30]
[400370213,1767448246869,-150.0,0.00041596,30]
[400370216,1767448246879,-150.0,0.00041596,30]
[400370218,1767448246888,-150.0,0.00041598,30]
[400370219,1767448246898,-150.0,0.00041603,30]
[400370221,1767448246908,-150.0,0.00041605,30]
[400370224,1767448246918,-150.0,0.00041612,30]
[400370226,1767448246928,-150.0,0.00041615,30]
[400370228,1767448246938,-150.0,0.00041619,30]
[400370230,1767448246948,-150.0,0.00041619,30]
[400370232,1767448246959,-150.0,0.00041624,30]
[400370234,1767448246970,-150.0,0.00041628,30]
[400370236,1767448246980,-150.0,0.00041642,30]
[400370238,1767448246989,-150.0,0.00041642,30]
[400370240,1767448246998,-600.0,0.00041644,120]
[400370242,1767448247008,-150.0,0.00041644,30]
[400370244,1767448247018,-150.0,0.00041646,30]
[400370246,1767448247028,-150.0,0.00041657,30]
[400370248,1767448247037,-150.0,0.0004166,30]
[400370250,1767448247047,-150.0,0.0004166,30]
[400370252,1767448247057,-150.0,0.00041665,30]
[400370271,1767448247234,-150.0,0.00041666,30]
[400370274,1767448247255,-150.0,0.00041666,30]
[400370276,1767448247266,-808.97128005,0.00041668,2]
[400370278,1767448247276,-150.0,0.00041679,30]
[400370280,1767448247286,-150.0,0.00041683,30]
[400370282,1767448247298,-150.0,0.00041683,30]
[400370284,1767448247308,-150.0,0.00041686,30]
[400370286,1767448247318,-150.0,0.00041687,30]
[400370288,1767448247328,-150.0,0.00041689,30]
[400370290,1767448247338,-150.0,0.00041689,30]
[400370292,1767448247348,-13685.0,0.000417,90]
[400370294,1767448247358,-150.0,0.00041706,30]
[400370296,1767448247368,-150.0,0.00041706,30]
[400370298,1767448247377,-150.0,0.00041712,30]
[400370300,1767448247387,-150.0,0.00041712,30]
[400370302,1767448247398,-150.0,0.00041712,30]
[400370304,1767448247407,-150.0,0.00041716,30]
[400370306,1767448247417,-150.0,0.00041727,30]
[400370308,1767448247427,-150.0,0.0004173,30]
[400370310,1767448247437,-168.0,0.00041735,2]
[400370312,1767448247447,-150.0,0.00041735,30]
[400370314,1767448247456,-150.0,0.00041735,30]
[400370316,1767448247466,-150.0,0.00041745,30]
[400370318,1767448247476,-150.0,0.00041746,30]
[400370320,1767448247485,-192.0,0.00041747,30]
[400370322,1767448247495,-150.0,0.00041747,30]
[400370324,1767448247506,-150.0,0.00041751,30]
[400370326,1767448247516,-150.0,0.00041751,30]
[400370328,1767448247525,-150.0,0.00041759,30]
[400370330,1767448247535,-150.0,0.00041759,30]
[400370332,1767448247545,-150.0,0.00041768,30]
[400370334,1767448247555,-150.0,0.00041776,30]
[400370335,1767448247565,-150.0,0.00041779,30]
[400370336,1767448247575,-150.0,0.00041782,30]
[400370337,1767448247584,-150.0,0.00041782,30]
[400370338,1767448247593,-500.0,0.00041783,60]
[400370339,1767448247603,-150.0,0.00041785,30]
[400370340,1767448247613,-150.0,0.00041789,30]
[400370341,1767448247622,-150.0,0.00041796,30]
[400370342,1767448247634,-150.0,0.00041805,30]
[400370343,1767448247643,-150.0,0.00041805,30]
[400370344,1767448247653,-150.0,0.00041805,30]
[400370345,1767448247664,-150.0,0.00041809,30]
[400370347,1767448247674,-150.0,0.00041812,30]
[400370349,1767448247684,-150.0,0.00041828,30]
[400370351,1767448247694,-150.0,0.00041828,30]
[400370353,1767448247704,-150.0,0.0004183,30]
[400370355,1767448247713,-150.0,0.00041835,30]
[400370357,1767448247723,-150.0,0.00041841,30]
[400370359,1767448247732,-150.0,0.00041841,30]
[400370361,1767448247741,-150.0,0.00041845,30]
[400370363,1767448247751,-150.0,0.00041851,30]
[400370365,1767448247760,-150.0,0.00041852,30]
[400370367,1767448247770,-150.0,0.00041852,30]
[400370369,1767448247779,-150.0,0.00041855,30]
[400370371,1767448247789,-150.0,0.00041864,30]
[400370373,1767448247799,-150.0,0.00041871,30]
[400370375,1767448247808,-150.0,0.00041875,30]
[400370377,1767448247817,-150.0,0.00041875,30]
[400370379,1767448247827,-150.0,0.00041878,30]
[400370381,1767448247836,-150.0,0.00041887,30]
[400370383,1767448247846,-150.0,0.00041887,30]
[400370385,1767448247855,-150.0,0.00041887,30]
[400370387,1767448247866,-150.0,0.00041892,30]
[400370389,1767448247875,-150.0,0.00041894,30]
[400370391,1767448247885,-150.0,0.00041898,30]
[400370393,1767448247894,-150.0,0.00041898,30]
[400370395,1767448247903,-150.0,0.00041912,30]
[400370397,1767448247913,-150.0,0.00041912,30]
[400370400,1767448247923,-150.0,0.00041921,30]
[400370402,1767448247932,-150.0,0.00041921,30]
[400370404,1767448247941,-150.0,0.00041924,30]
[400370406,1767448247950,-150.0,0.00041932,30]
[400370408,1767448247960,-150.0,0.00041932,30]
[400370410,1767448247970,-150.0,0.00041933,30]
[400370412,1767448247979,-150.0,0.00041945,30]
[400370414,1767448247989,-150.0,0.00041945,30]
[400370416,1767448248000,-150.0,0.00041945,30]
[400370418,1767448248010,-150.0,0.00041952,30]
[400370420,1767448248020,-243.41817815,0.00041952,30]
[400370422,1767448248029,-150.0,0.00041952,30]
[400370424,1767448248039,-239.72930639,0.00041952,30]
[400370426,1767448248049,-150.0,0.00041953,30]
[400370428,1767448248058,-150.0,0.00041954,30]
[400370429,1767448248068,-150.0,0.00041968,30]
[400370431,1767448248077,-150.0,0.00041968,30]
[400370434,1767448248087,-150.0,0.00041974,30]
[400370435,1767448248097,-150.0,0.00041977,30]
[400370437,1767448248107,-168.0,0.00041978,2]
[400370440,1767448248117,-150.0,0.00041978,30]
[400370441,1767448248126,-150.0,0.00041981,30]
[400370443,1767448248135,-150.0,0.00041983,30]
[400370446,1767448248144,-150.0,0.00041988,30]
[400370448,1767448248154,-150.0,0.00041991,30]
[400370450,1767448248163,-150.0,0.00041991,30]
[400370451,1767448248172,-168.0,0.00041994,2]
[400370453,1767448248181,-150.0,0.00041995,30]
[400370455,1767448248191,-500.0,0.00041999,30]
[400370458,1767448248201,-1151.94,0.00042,120]
[400370459,1767448248210,-4049.7589377,0.00042,30]
[400370461,1767448248219,-500.0,0.00042,10]
[400370464,1767448248229,-100687.5714993,0.00042,30]
[400370466,1767448248238,-5241.94763648,0.00042,30]
[400370467,1767448248247,-1586.61609709,0.00042,120]
[400370470,1767448248258,-150.0,0.00042,10]
[400370471,1767448248268,-216.648183,0.00042,120]
[400370473,1767448248277,-216.648183,0.00042,120]
[400370475,1767448248287,-216.648183,0.00042,120]
[400370478,1767448248296,-216.648183,0.00042,120]
[400370480,1767448248307,-808.97128005,0.00042001,2]
[400370482,1767448248316,-150.0,0.00042011,30]
[400370484,1767448248325,-150.0,0.00042012,30]
[400370485,1767448248336,-150.0,0.00042015,30]
[400370487,1767448248346,-150.0,0.00042015,30]
[400370490,1767448248355,-150.0,0.00042015,30]
[400370491,1767448248364,-150.0,0.00042022,30]
[400370494,1767448248374,-150.0,0.00042022,30]
[400370496,1767448248383,-150.0,0.00042036,30]
[400370498,1767448248394,-150.0,0.00042038,30]
[400370500,1767448248403,-150.0,0.00042038,30]
[400370501,1767448248413,-150.0,0.00042042,30]
[400370503,1767448248422,-150.0,0.00042044,30]
[400370506,1767448248432,-150.0,0.00042057,30]
[400370508,1767448248441,-150.0,0.00042061,30]
[400370510,1767448248452,-150.0,0.00042061,30]
[400370512,1767448248461,-150.0,0.00042068,30]
[400370514,1767448248471,-150.0,0.00042072,30]
[400370516,1767448248481,-150.0,0.00042077,30]
[400370518,1767448248490,-150.0,0.00042078,30]
[400370520,1767448248500,-150.0,0.00042084,30]
[400370522,1767448248509,-150.0,0.00042084,30]
[400370524,1767448248520,-150.0,0.0004209,30]
[400370525,1767448248530,-150.0,0.0004209,30]
[400370526,1767448248540,-150.0,0.00042098,30]
[400370527,1767448248550,-249.44443908,0.000421,120]
[400370528,1767448248560,-150.0,0.00042101,30]
[400370529,1767448248570,-150.0,0.00042106,30]
[400370530,1767448248580,-150.0,0.00042108,30]
[400370532,1767448248590,-150.0,0.00042108,30]
[400370533,1767448248600,-150.0,0.00042111,30]
[400370534,1767448248609,-150.0,0.00042113,30]
[400370535,1767448248619,-150.0,0.00042113,30]
[400370536,1767448248629,-150.0,0.00042119,30]
[400370537,1767448248638,-150.0,0.00042131,30]
[400370538,1767448248647,-150.0,0.00042131,30]
[400370539,1767448248657,-150.0,0.00042131,30]
[400370541,1767448248667,-150.0,0.00042139,30]
[400370542,1767448248676,-150.0,0.00042144,30]
[400370543,1767448248685,-257.55037605,0.0004215,120]
[400370544,1767448248695,-150.0,0.00042154,30]
[400370545,1767448248704,-150.0,0.00042154,30]
[400370546,1767448248713,-150.0,0.00042158,30]
[400370547,1767448248723,-150.0,0.0004216,30]
[400370548,1767448248732,-150.0,0.0004216,30]
[400370549,1767448248742,-150.0,0.00042177,30]
[400370550,1767448248752,-150.0,0.00042177,30]
[400370551,1767448248762,-150.0,0.00042177,30]
[400370552,1767448248771,-192.0,0.00042178,30]
[400370553,1767448248780,-150.0,0.0004218,30]
[400370554,1767448248790,-150.0,0.0004219,30]
[400370555,1767448248799,-999.0,0.00042191,120]
[400370556,1767448248809,-600.0,0.00042192,120]
[400370557,1767448248818,-150.0,0.00042192,30]
[400370558,1767448248827,-150.0,0.00042201,30]
[400370559,1767448248837,-150.0,0.00042201,30]
[400370560,1767448248846,-150.0,0.00042201,30]
[400370561,1767448248856,-150.0,0.00042203,30]
[400370562,1767448248865,-150.0,0.00042203,30]
[400370563,1767448248874,-150.0,0.00042211,30]
[400370564,1767448248883,-150.0,0.0004222,30]
[400370565,1767448248892,-150.0,0.00042222,30]
[400370566,1767448248902,-150.0,0.00042224,30]
[400370567,1767448248911,-150.0,0.00042224,30]
[400370568,1767448248920,-150.0,0.00042231,30]
[400370569,1767448248929,-150.0,0.00042242,30]
[400370570,1767448248939,-150.0,0.00042244,30]
[400370571,1767448248948,-150.0,0.00042247,30]
[400370572,1767448248957,-150.0,0.00042247,30]
[400370573,1767448248967,-150.0,0.00042248,30]
[400370574,1767448248976,-150.0,0.00042249,30]
[400370575,1767448248985,-150.0,0.00042263,30]
[400370576,1767448248994,-150.0,0.0004227,30]
[400370577,1767448249004,-150.0,0.0004227,30]
[400370578,1767448249014,-150.0,0.00042277,30]
[400370579,1767448249023,-150.0,0.00042279,30]
[400370580,1767448249032,-150.0,0.00042283,30]
[400370581,1767448249042,-150.0,0.00042294,30]
[400370582,1767448249060,-150.0,0.00042294,30]
[400370583,1767448249070,-150.0,0.00042294,30]
[400370584,1767448249087,-150.0,0.00042294,30]
[400370585,1767448249099,-150.0,0.00042294,30]
[400370586,1767448249116,-150.0,0.00042294,30]
[400370587,1767448249125,-195.0,0.000423,120]
[400370588,1767448249135,-150.0,0.00042304,30]
[400370589,1767448249144,-150.0,0.00042309,30]
[400370590,1767448249154,-150.0,0.0004231,30]
[400370591,1767448249163,-150.0,0.00042317,30]
[400370592,1767448249173,-150.0,0.00042317,30]
[400370593,1767448249183,-150.0,0.00042325,30]
[400370594,1767448249192,-500.0,0.00042331,60]
[400370595,1767448249202,-500.0,0.00042331,60]
[400370596,1767448249212,-808.97128005,0.00042334,2]
[400370597,1767448249222,-150.0,0.00042338,30]
[400370598,1767448249231,-150.0,0.00042339,30]
[400370599,1767448249240,-150.0,0.0004234,30]
[400370600,1767448249250,-150.0,0.0004234,30]
[400370601,1767448249263,-150.0,0.00042344,30]
[400370602,1767448249273,-150.0,0.00042345,30]
[400370604,1767448249282,-150.0,0.00042356,30]
[400370605,1767448249291,-150.0,0.00042364,30]
[400370606,1767448249302,-150.0,0.00042364,30]
[400370607,1767448249311,-150.0,0.00042366,30]
[400370608,1767448249320,-150.0,0.00042368,30]
[400370609,1767448249333,-150.0,0.00042377,30]
[400370610,1767448249343,-150.0,0.00042384,30]
[400370611,1767448249352,-150.0,0.00042384,30]
[400370612,1767448249362,-150.0,0.00042386,30]
[400370613,1767448249374,-150.0,0.00042387,30]
[400370614,1767448249384,-150.0,0.00042387,30]
[400370615,1767448249394,-150.0,0.00042396,30]
[400370616,1767448249404,-150.0,0.00042397,30]
[400370617,1767448249414,-1361.1521,0.000424,2]
[400370618,1767448249424,-150.0,0.00042407,30]
[400370619,1767448249434,-150.0,0.0004241,30]
[400370620,1767448249443,-150.0,0.0004241,30]
[400370621,1767448249453,-150.0,0.0004241,30]
[400370622,1767448249462,-1000.0,0.00042416,2]
[400370623,1767448249471,-152.0,0.00042427,3]
[400370624,1767448249482,-150.0,0.00042427,30]
[400370625,1767448249492,-150.0,0.00042428,30]
[400370626,1767448249501,-150.0,0.00042429,30]
[400370627,1767448249511,-150.0,0.00042433,30]
[400370628,1767448249520,-150.0,0.00042433,30]
[400370629,1767448249530,-287.8033085,0.00042434,39]
[400370630,1767448249540,-150.0,0.00042443,30]
[400370631,1767448249550,-150.0,0.00042448,30]
[400370632,1767448249559,-150.0,0.00042457,30]
[400370633,1767448249569,-150.0,0.00042457,30]
[400370634,1767448249578,-150.0,0.00042457,30]
[400370635,1767448249588,-150.0,0.00042469,30]
[400370636,1767448249598,-150.0,0.00042475,30]
[400370637,1767448249608,-150.0,0.00042475,30]
[400370638,1767448249618,-150.0,0.00042477,30]
[400370639,1767448249627,-150.0,0.0004248,30]
[400370640,1767448249637,-150.0,0.0004248,30]
[400370641,1767448249647,-150.0,0.00042482,30]
[400370642,1767448249656,-150.0,0.00042486,30]
[400370643,1767448249666,-150.0,0.0004249,30]
[400370644,1767448249676,-150.0,0.00042497,30]
[400370645,1767448249685,-150.0,0.00042497,30]
[400370646,1767448249695,-253.0,0.000425,39]
[400370647,1767448249704,-21420.0,0.000425,90]
[400370648,1767448249714,-150.0,0.00042503,30]
[400370649,1767448249723,-150.0,0.00042503,30]
[400370651,1767448249733,-150.0,0.0004251,30]
[400370653,1767448249743,-150.0,0.0004251,30]
[400370655,1767448249752,-150.0,0.00042516,30]
[400370657,1767448249762,-150.0,0.0004252,30]
[400370659,1767448249772,-150.0,0.00042526,30]
[400370660,1767448249781,-150.0,0.00042526,30]
[400370662,1767448249792,-150.0,0.00042531,30]
[400370665,1767448249802,-150.0,0.00042543,30]
[400370666,1767448249811,-150.0,0.00042545,30]
[400370669,1767448249820,-150.0,0.0004255,30]
[400370671,1767448249829,-150.0,0.0004255,30]
[400370672,1767448249839,-150.0,0.00042551,30]
[400370675,1767448249848,-150.0,0.00042565,30]
[400370677,1767448249858,-150.0,0.00042565,30]
[400370679,1767448249867,-1292.84547073,0.00042572,15]
[400370680,1767448249876,-150.0,0.00042572,30]
[400370682,1767448249886,-150.0,0.00042573,30]
[400370684,1767448249895,-150.0,0.00042573,30]
[400370686,1767448249904,-150.0,0.00042575,30]
[400370688,1767448249914,-150.0,0.00042576,30]
[400370690,1767448249923,-150.0,0.00042593,30]
[400370692,1767448249932,-150.0,0.00042596,30]
[400370694,1767448249942,-150.0,0.00042596,30]
[400370696,1767448249951,-150.0,0.00042599,30]
[400370698,1767448249960,-150.0,0.00042605,30]
[400370700,1767448249971,-150.0,0.00042607,30]
[400370702,1767448249980,-192.0,0.00042608,30]
[400370703,1767448249990,-150.0,0.00042609,30]
[400370704,1767448249999,-150.0,0.0004261,30]
[400370705,1767448250009,-150.0,0.00042613,30]
[400370707,1767448250019,-150.0,0.00042619,30]
[400370709,1767448250028,-150.0,0.00042619,30]
[400370710,1767448250037,-168.0,0.00042624,2]
[400370711,1767448250047,-150.0,0.00042634,30]
[400370713,1767448250056,-150.0,0.00042634,30]
[400370715,1767448250066,-150.0,0.00042643,30]
[400370716,1767448250076,-150.0,0.00042643,30]
[400370717,1767448250085,-150.0,0.00042643,30]
[400370718,1767448250095,-150.0,0.00042654,30]
[400370719,1767448250105,-150.0,0.00042656,30]
[400370720,1767448250115,-150.0,0.00042656,30]
[400370721,1767448250124,-150.0,0.00042664,30]
[400370722,1767448250136,-2000.0,0.00042665,3]
[400370723,1767448250146,-2000.0,0.00042665,3]
[400370724,1767448250155,-150.0,0.00042666,30]
[400370725,1767448250164,-150.0,0.00042666,30]
[400370726,1767448250174,-808.97128005,0.00042667,2]
[400370727,1767448250183,-500.0,0.00042673,10]
[400370728,1767448250193,-500.0,0.00042673,10]
[400370729,1767448250202,-500.0,0.00042673,10]
[400370730,1767448250211,-500.0,0.00042673,10]
[400370731,1767448250221,-500.0,0.00042673,10]
[400370732,1767448250230,-500.0,0.00042673,10]
[400370733,1767448250240,-500.0,0.00042673,10]
[400370734,1767448250249,-500.0,0.00042673,7]
[400370735,1767448250261,-618.15037919,0.00042673,5]
[400370736,1767448250271,-500.0,0.00042673,10]
[400370737,1767448250280,-500.0,0.00042673,10]
[400370738,1767448250290,-500.0,0.00042673,10]
[400370739,1767448250299,-500.25406719,0.00042673,10]
[400370740,1767448250309,-500.0,0.00042673,10]
[400370741,1767448250318,-500.0,0.00042673,10]
[400370742,1767448250330,-383.83676064,0.00042673,10]
[400370743,1767448250340,-500.0,0.00042673,10]
[400370744,1767448250350,-500.0,0.00042673,10]
[400370745,1767448250359,-500.0,0.00042673,10]
[400370746,1767448250368,-500.0,0.00042673,10]
[400370747,1767448250378,-160.61780186,0.00042673,10]
[400370748,1767448250387,-500.0,0.00042673,10]
[400370749,1767448250397,-168.66798741,0.00042673,10]
[400370750,1767448250406,-500.0,0.00042673,10]
[400370751,1767448250415,-500.17058704,0.00042673,10]
[400370752,1767448250425,-160.47890875,0.00042673,10]
[400370753,1767448250435,-510.4345726,0.00042673,10]
[400370754,1767448250444,-160.48993212,0.00042673,10]
[400370755,1767448250453,-260.60456049,0.00042673,10]
[400370756,1767448250463,-503.73673391,0.00042673,10]
[400370757,1767448250473,-501.04887235,0.00042673,10]
[400370758,1767448250482,-506.64217996,0.00042673,10]
[400370759,1767448250491,-500.0,0.00042673,10]
[400370760,1767448250501,-500.53069493,0.00042673,10]
[400370761,1767448250510,-500.0,0.00042673,10]
[400370762,1767448250520,-500.0,0.00042673,10]
[400370763,1767448250530,-160.48419622,0.00042673,10]
[400370764,1767448250539,-500.0,0.00042673,10]
[400370765,1767448250549,-500.0,0.00042673,10]
[400370766,1767448250559,-283.11616372,0.00042673,10]
[400370767,1767448250568,-511.6387826,0.00042673,10]
[400370768,1767448250578,-500.0,0.00042673,10]
[400370769,1767448250587,-483.92534675,0.00042673,10]
[400370770,1767448250597,-500.0,0.00042673,10]
[400370771,1767448250607,-161.92241187,0.00042673,2]
[400370772,1767448250618,-500.0,0.00042673,5]
[400370773,1767448250627,-500.0,0.00042673,10]
[400370774,1767448250638,-378.48431635,0.00042673,10]
[400370775,1767448250648,-500.0,0.00042673,10]
[400370776,1767448250658,-150.0,0.00042673,10]
[400370777,1767448250667,-500.38122606,0.00042673,10]
[400370778,1767448250677,-168.91753678,0.00042673,10]
[400370779,1767448250687,-551.86853596,0.00042673,10]
[400370780,1767448250697,-500.0,0.00042673,10]
[400370781,1767448250707,-500.0,0.00042673,10]
[400370782,1767448250716,-500.89039027,0.00042673,10]
[400370783,1767448250726,-164.00885732,0.00042673,10]
[400370784,1767448250735,-165.870497,0.00042673,10]
[400370785,1767448250744,-500.0,0.00042673,10]
[400370786,1767448250754,-165.13932683,0.00042673,10]
[400370787,1767448250763,-150.0,0.00042675,30]
[400370788,1767448250772,-150.0,0.00042676,30]
[400370789,1767448250782,-150.0,0.00042689,30]
[400370790,1767448250792,-150.0,0.00042689,30]
[400370791,1767448250801,-150.0,0.00042693,30]
[400370792,1767448250811,-150.0,0.00042696,30]
[400370793,1767448250821,-150.0,0.00042701,30]
[400370794,1767448250831,-150.0,0.00042701,30]
[400370795,1767448250840,-150.0,0.00042701,30]
[400370796,1767448250850,-150.0,0.00042709,30]
[400370797,1767448250859,-150.0,0.00042712,30]
[400370798,1767448250868,-150.0,0.00042712,30]
[400370799,1767448250878,-150.0,0.00042716,30]
[400370800,1767448250887,-150.0,0.00042723,30]
[400370801,1767448250896,-150.0,0.00042732,30]
[400370802,1767448250907,-150.0,0.00042736,30]
[400370803,1767448250917,-150.0,0.00042736,30]
[400370804,1767448250927,-150.0,0.00042737,30]
[400370805,1767448250936,-600.0,0.0004274,120]
[400370806,1767448250946,-150.0,0.00042742,30]
[400370807,1767448250956,-150.0,0.00042746,30]
[400370808,1767448250966,-150.0,0.00042746,30]
[400370809,1767448250975,-168.0,0.00042752,7]
[400370810,1767448250984,-150.0,0.00042753,30]
[400370811,1767448250994,-150.0,0.00042758,30]
[400370812,1767448251004,-150.0,0.00042759,30]
[400370813,1767448251014,-150.0,0.00042759,30]
[400370814,1767448251023,-21559.14297396,0.00042771,30]
[400370815,1767448251033,-150.0,0.00042776,30]
[400370816,1767448251042,-150.0,0.00042778,30]
[400370817,1767448251052,-1292.84547073,0.0004278,15]
[400370818,1767448251062,-216.648183,0.0004278,120]
[400370819,1767448251072,-216.648183,0.0004278,120]
[400370820,1767448251081,-216.648183,0.0004278,120]
[400370821,1767448251091,-216.648183,0.0004278,120]
[400370822,1767448251100,-423.47260024,0.0004278,2]
[400370823,1767448251110,-1946.60315383,0.0004278,2]
[400370824,1767448251119,-1498.16710801,0.0004278,2]
[400370825,1767448251129,-183.10634406,0.00042781,2]
[400370826,1767448251139,-150.0,0.00042782,30]
[400370827,1767448251148,-150.0,0.00042782,30]
[400370828,1767448251158,-150.0,0.00042782,30]
[400370829,1767448251168,-4000.0,0.00042784,31]
[400370830,1767448251178,-150.0,0.00042791,30]
[400370831,1767448251189,-150.0,0.00042799,30]
[400370832,1767448251198,-150.0,0.00042803,30]
[400370833,1767448251208,-150.0,0.00042806,30]
[400370834,1767448251219,-150.0,0.00042806,30]
[400370835,1767448251229,-150.0,0.00042809,30]
[400370836,1767448251239,-150.0,0.00042812,30]
[400370837,1767448251249,-150.0,0.00042819,30]
[400370838,1767448251262,-1946.60315381,0.00042824,2]
[400370839,1767448251272,-150.0,0.00042829,30]
[400370840,1767448251282,-150.0,0.00042829,30]
[400370841,1767448251291,-150.0,0.00042837,30]
[400370842,1767448251302,-150.0,0.00042837,30]